[Event "December 12 Early 2023"]
[Site "https://www.chess.com"]
[Date "2023.12.12"]
[Round "2"]
[White "Durarbayli, Vasif"]
[Black "Lamaze, Simon"]
[Result "0-1"]
[Board "26"]
[TimeControl "180+1"]
[WhiteFideId "13402935"]
[BlackFideId "36069264"]
[WhiteElo "2921"]
[BlackElo "2611"]
[WhiteTeam "AZE"]
[BlackTeam "FRA"]
[WhiteClock "0:00:00"]
[BlackClock "0:01:28"]

1. e4 {[%clk 0:03:00]}  c6 {[%clk 0:03:00]} 2. d4 {[%clk 0:03:00]}  d5 {[%clk 0:03:01]} 3. e5 {[%clk 0:03:01]}  Bf5 {[%clk 0:03:01]} 4. h4 {[%clk 0:03:01]}  h5 {[%clk 0:03:00]} 5. c4 {[%clk 0:03:02]}  e6 {[%clk 0:03:00]} 6. Nc3 {[%clk 0:03:02]}  Ne7 {[%clk 0:03:01]} 7. Nge2 {[%clk 0:03:03]}  Nd7 {[%clk 0:02:59]} 8. Ng3 {[%clk 0:02:51]}  Bg6 {[%clk 0:02:59]} 9. Bd3 {[%clk 0:02:46]}  dxc4 {[%clk 0:02:50]} 10. Bxc4 {[%clk 0:02:44]}  Nd5 {[%clk 0:02:50]} 11. Bxd5 {[%clk 0:02:37]}  cxd5 {[%clk 0:02:49]} 12. Bg5 {[%clk 0:02:37]}  Qb6 {[%clk 0:02:49]} 13. Qd2 {[%clk 0:02:31]}  Bb4 {[%clk 0:02:48]} 14. O-O {[%clk 0:02:31]}  Qa6 {[%clk 0:02:46]} 15. Nge2 {[%clk 0:02:07]}  Qd3 {[%clk 0:02:42]} 16. Qf4 {[%clk 0:02:00]}  Nb6 {[%clk 0:02:36]} 17. Rfd1 {[%clk 0:01:56]}  Qf5 {[%clk 0:02:34]} 18. Qxf5 {[%clk 0:01:45]}  Bxf5 {[%clk 0:02:35]} 19. Nb5 {[%clk 0:01:45]}  Kd7 {[%clk 0:02:27]} 20. a3 {[%clk 0:01:44]}  Bf8 {[%clk 0:02:21]} 21. Rac1 {[%clk 0:01:41]}  Nc4 {[%clk 0:02:19]} 22. b3 {[%clk 0:01:33]}  a6 {[%clk 0:02:19]} 23. bxc4 {[%clk 0:01:33]}  axb5 {[%clk 0:02:18]} 24. cxd5 {[%clk 0:01:22]}  Bxa3 {[%clk 0:02:18]} 25. Rc3 {[%clk 0:01:04]}  Rhc8 {[%clk 0:02:16]} 26. dxe6+ {[%clk 0:00:56]}  fxe6 {[%clk 0:02:15]} 27. d5 {[%clk 0:00:56]}  Rxc3 {[%clk 0:01:50]} 28. Nxc3 {[%clk 0:00:57]}  b4 {[%clk 0:01:50]} 29. dxe6+ {[%clk 0:00:57]}  Kxe6 {[%clk 0:01:49]} 30. Nb5 {[%clk 0:00:58]}  Rc8 {[%clk 0:01:33]} 31. f4 {[%clk 0:00:28]}  Rc1 {[%clk 0:01:32]} 32. Nd4+ {[%clk 0:00:12]}  Kd5 {[%clk 0:01:32]} 33. Rxc1 {[%clk 0:00:13]}  Bxc1 {[%clk 0:01:33]} 34. Nxf5 {[%clk 0:00:13]}  b3 {[%clk 0:01:34]} 35. e6 {[%clk 0:00:12]}  b2 {[%clk 0:01:34]} 36. e7 {[%clk 0:00:13]}  b1=Q {[%clk 0:01:35]} 37. e8=Q {[%clk 0:00:12]}  Bxf4+ {[%clk 0:01:34]} 38. Kf2 {[%clk 0:00:12]}  Qxf5 {[%clk 0:01:35]} 39. Qd8+ {[%clk 0:00:05]}  Bd6+ {[%clk 0:01:34]} 40. Ke2 {[%clk 0:00:02]}  Qe4+ {[%clk 0:01:33]} 41. Kf2 {[%clk 0:00:02]}  g6 {[%clk 0:01:31]} 42. Qg8+ {[%clk 0:00:02]}  Qe6 {[%clk 0:01:28]} 43. Qc8 {[%clk 0:00:00]}  Qxc8 {[%clk 0:01:28]} 0-1

[Event "December 12 Early 2023"]
[Site "https://www.chess.com"]
[Date "2023.12.12"]
[Round "2"]
[White "Indjic, Aleksandar"]
[Black "Skatchkov, Valery"]
[Result "0-1"]
[Board "27"]
[TimeControl "180+1"]
[WhiteFideId "911925"]
[BlackFideId "24195812"]
[WhiteElo "2916"]
[BlackElo "2609"]
[WhiteTeam "SRB"]
[BlackTeam "RUS"]
[WhiteClock "0:01:00"]
[BlackClock "0:00:13"]

1. Nf3 {[%clk 0:03:00]}  d5 {[%clk 0:02:57]} 2. e3 {[%clk 0:03:01]}  c5 {[%clk 0:02:55]} 3. b3 {[%clk 0:03:01]}  Nf6 {[%clk 0:02:52]} 4. Bb2 {[%clk 0:03:01]}  g6 {[%clk 0:02:53]} 5. Bb5+ {[%clk 0:02:46]}  Bd7 {[%clk 0:02:50]} 6. Bxf6 {[%clk 0:02:46]}  exf6 {[%clk 0:02:45]} 7. Bxd7+ {[%clk 0:02:47]}  Qxd7 {[%clk 0:02:42]} 8. d4 {[%clk 0:02:47]}  cxd4 {[%clk 0:02:38]} 9. Nxd4 {[%clk 0:02:46]}  Nc6 {[%clk 0:02:38]} 10. O-O {[%clk 0:02:46]}  Bg7 {[%clk 0:02:38]} 11. c3 {[%clk 0:02:46]}  O-O {[%clk 0:02:38]} 12. Nd2 {[%clk 0:02:47]}  f5 {[%clk 0:02:35]} 13. N2f3 {[%clk 0:02:47]}  Rac8 {[%clk 0:02:33]} 14. Rc1 {[%clk 0:02:47]}  Rfd8 {[%clk 0:02:28]} 15. g3 {[%clk 0:02:47]}  h6 {[%clk 0:02:16]} 16. Qd2 {[%clk 0:02:46]}  Qc7 {[%clk 0:02:09]} 17. Rfd1 {[%clk 0:02:44]}  Qa5 {[%clk 0:02:10]} 18. Kg2 {[%clk 0:02:42]}  Kh7 {[%clk 0:02:07]} 19. h4 {[%clk 0:02:42]}  Bf6 {[%clk 0:01:58]} 20. Rc2 {[%clk 0:02:41]}  Kg7 {[%clk 0:01:57]} 21. Rdc1 {[%clk 0:02:40]}  Qc5 {[%clk 0:01:49]} 22. Qd3 {[%clk 0:02:40]}  Qe7 {[%clk 0:01:48]} 23. Rd1 {[%clk 0:02:35]}  Qe4 {[%clk 0:01:48]} 24. Kg1 {[%clk 0:02:33]}  Qg4 {[%clk 0:01:43]} 25. Qe2 {[%clk 0:02:32]}  Bxd4 {[%clk 0:00:21]} 26. cxd4 {[%clk 0:02:26]}  f4 {[%clk 0:00:18]} 27. exf4 {[%clk 0:02:23]}  Re8 {[%clk 0:00:17]} 28. Ne5 {[%clk 0:01:35]}  Qxe2 {[%clk 0:00:17]} 29. Rxe2 {[%clk 0:01:36]}  f6 {[%clk 0:00:17]} 30. Kg2 {[%clk 0:01:37]}  fxe5 {[%clk 0:00:18]} 31. dxe5 {[%clk 0:01:38]}  Rcd8 {[%clk 0:00:17]} 32. Kf3 {[%clk 0:01:38]}  h5 {[%clk 0:00:18]} 33. Red2 {[%clk 0:01:37]}  Kf7 {[%clk 0:00:18]} 34. Rxd5 {[%clk 0:01:37]}  Rxd5 {[%clk 0:00:18]} 35. Rxd5 {[%clk 0:01:38]}  Rd8 {[%clk 0:00:19]} 36. Rxd8 {[%clk 0:01:38]}  Nxd8 {[%clk 0:00:20]} 37. Ke4 {[%clk 0:01:38]}  Ke6 {[%clk 0:00:20]} 38. f3 {[%clk 0:01:38]}  Nc6 {[%clk 0:00:18]} 39. g4 {[%clk 0:01:38]}  Ne7 {[%clk 0:00:19]} 40. Kd4 {[%clk 0:01:35]}  b6 {[%clk 0:00:18]} 41. Ke4 {[%clk 0:01:35]}  a6 {[%clk 0:00:17]} 42. a3 {[%clk 0:01:35]}  a5 {[%clk 0:00:14]} 43. a4 {[%clk 0:01:35]}  Nc6 {[%clk 0:00:13]} 44. f5+ {[%clk 0:01:35]}  gxf5+ {[%clk 0:00:14]} 45. gxf5+ {[%clk 0:01:36]}  Ke7 {[%clk 0:00:14]} 46. f4 {[%clk 0:01:36]}  Kf7 {[%clk 0:00:14]} 47. f6 {[%clk 0:01:36]}  Ke6 {[%clk 0:00:13]} 48. f5+ {[%clk 0:01:36]}  Kf7 {[%clk 0:00:14]} 49. Kd5 {[%clk 0:01:37]}  Nb4+ {[%clk 0:00:13]} 50. Kd6 {[%clk 0:01:37]}  Nd3 {[%clk 0:00:13]} 51. Kd5 {[%clk 0:01:12]}  Nc5 {[%clk 0:00:13]} 52. Kc6 {[%clk 0:01:12]}  Nxb3 {[%clk 0:00:13]} 53. Kd6 {[%clk 0:01:11]}  Nd4 {[%clk 0:00:11]} 54. e6+ {[%clk 0:01:11]}  Kxf6 {[%clk 0:00:11]} 55. e7 {[%clk 0:01:06]}  Nxf5+ {[%clk 0:00:11]} 56. Kc6 {[%clk 0:01:07]}  Kxe7 {[%clk 0:00:12]} 57. Kxb6 {[%clk 0:01:08]}  Nxh4 {[%clk 0:00:13]} 58. Kxa5 {[%clk 0:01:07]}  Nf5 {[%clk 0:00:13]} 59. Kb6 {[%clk 0:01:00]}  h4 {[%clk 0:00:13]} 60. a5 {[%clk 0:01:01]}  Nd6 {[%clk 0:00:12]} 61. a6 {[%clk 0:01:02]}  h3 {[%clk 0:00:13]} 62. a7 {[%clk 0:01:00]}  Nc8+ {[%clk 0:00:13]} 0-1

[Event "December 12 Early 2023"]
[Site "https://www.chess.com"]
[Date "2023.12.12"]
[Round "2"]
[White "Zakhartsov, Vladimir"]
[Black "NikaVolkov"]
[Result "1-0"]
[Board "29"]
[TimeControl "180+1"]
[WhiteFideId "4145097"]
[WhiteElo "2910"]
[BlackElo "2606"]
[WhiteTeam "RUS"]
[WhiteClock "0:00:55"]
[BlackClock "0:00:04"]

1. d4 {[%clk 0:03:00]}  e6 {[%clk 0:02:56]} 2. c4 {[%clk 0:03:01]}  d5 {[%clk 0:02:56]} 3. Nf3 {[%clk 0:03:01]}  Nf6 {[%clk 0:02:57]} 4. Nc3 {[%clk 0:03:01]}  Be7 {[%clk 0:02:58]} 5. Bf4 {[%clk 0:03:01]}  O-O {[%clk 0:02:59]} 6. e3 {[%clk 0:03:01]}  c5 {[%clk 0:02:58]} 7. dxc5 {[%clk 0:03:00]}  Bxc5 {[%clk 0:02:59]} 8. a3 {[%clk 0:03:00]}  Nc6 {[%clk 0:02:59]} 9. Qc2 {[%clk 0:02:58]}  Qe7 {[%clk 0:02:37]} 10. Rd1 {[%clk 0:02:56]}  Rd8 {[%clk 0:02:37]} 11. Bd3 {[%clk 0:02:23]}  d4 {[%clk 0:02:33]} 12. exd4 {[%clk 0:02:22]}  Nxd4 {[%clk 0:02:34]} 13. Nxd4 {[%clk 0:02:22]}  Bxd4 {[%clk 0:02:35]} 14. O-O {[%clk 0:02:22]}  h6 {[%clk 0:02:31]} 15. Nb5 {[%clk 0:02:20]}  e5 {[%clk 0:02:03]} 16. Bg3 {[%clk 0:01:56]}  Nh5 {[%clk 0:01:48]} 17. Rfe1 {[%clk 0:01:50]}  Nxg3 {[%clk 0:01:48]} 18. hxg3 {[%clk 0:01:50]}  Bg4 {[%clk 0:01:48]} 19. Bh7+ {[%clk 0:01:48]}  Kh8 {[%clk 0:01:45]} 20. Rxd4 {[%clk 0:01:48]}  Rxd4 {[%clk 0:00:35]} 21. Nxd4 {[%clk 0:01:47]}  Qg5 {[%clk 0:00:28]} 22. Nf3 {[%clk 0:01:11]}  Bxf3 {[%clk 0:00:28]} 23. gxf3 {[%clk 0:01:12]}  g6 {[%clk 0:00:28]} 24. Bxg6 {[%clk 0:01:13]}  fxg6 {[%clk 0:00:29]} 25. Qe4 {[%clk 0:01:13]}  Re8 {[%clk 0:00:24]} 26. f4 {[%clk 0:01:08]}  Qh5 {[%clk 0:00:18]} 27. fxe5 {[%clk 0:01:07]}  Re7 {[%clk 0:00:18]} 28. e6 {[%clk 0:01:07]}  Kh7 {[%clk 0:00:17]} 29. b4 {[%clk 0:01:01]}  b6 {[%clk 0:00:16]} 30. Qf4 {[%clk 0:00:58]}  Kg8 {[%clk 0:00:04]} 31. Qf6 {[%clk 0:00:55]} 1-0

[Event "December 12 Early 2023"]
[Site "https://www.chess.com"]
[Date "2023.12.12"]
[Round "2"]
[White "Banzea, Alexandru-Bogdan"]
[Black "Kovalev, Vladislav"]
[Result "0-1"]
[Board "30"]
[TimeControl "180+1"]
[WhiteFideId "1232622"]
[BlackFideId "13504398"]
[WhiteElo "2605"]
[BlackElo "2907"]
[WhiteTeam "ROU"]
[BlackTeam "FID"]
[WhiteClock "0:00:00"]
[BlackClock "0:00:44"]

1. d4 {[%clk 0:03:00]}  Nf6 {[%clk 0:02:58]} 2. Nc3 {[%clk 0:03:01]}  d5 {[%clk 0:02:58]} 3. Bf4 {[%clk 0:03:01]}  a6 {[%clk 0:02:58]} 4. e3 {[%clk 0:03:01]}  b5 {[%clk 0:02:58]} 5. a3 {[%clk 0:03:01]}  e6 {[%clk 0:02:55]} 6. b4 {[%clk 0:03:00]}  Be7 {[%clk 0:02:36]} 7. Nf3 {[%clk 0:02:59]}  O-O {[%clk 0:02:37]} 8. Bd3 {[%clk 0:02:59]}  a5 {[%clk 0:02:35]} 9. Nxb5 {[%clk 0:02:34]}  c6 {[%clk 0:02:35]} 10. Nc3 {[%clk 0:02:06]}  axb4 {[%clk 0:02:35]} 11. axb4 {[%clk 0:02:06]}  Ba6 {[%clk 0:02:11]} 12. Bxb8 {[%clk 0:01:21]}  Bxb4 {[%clk 0:02:11]} 13. O-O {[%clk 0:00:42]}  Bxc3 {[%clk 0:02:10]} 14. Rxa6 {[%clk 0:00:35]}  Rxa6 {[%clk 0:02:11]} 15. Bxa6 {[%clk 0:00:36]}  Qxb8 {[%clk 0:02:11]} 16. Qb1 {[%clk 0:00:23]}  Ne4 {[%clk 0:02:06]} 17. Bd3 {[%clk 0:00:20]}  c5 {[%clk 0:02:06]} 18. dxc5 {[%clk 0:00:14]}  Nxc5 {[%clk 0:02:05]} 19. Qa2 {[%clk 0:00:12]}  Qb4 {[%clk 0:01:56]} 20. Rb1 {[%clk 0:00:12]}  Qa4 {[%clk 0:01:47]} 21. Qxa4 {[%clk 0:00:12]}  Nxa4 {[%clk 0:01:48]} 22. e4 {[%clk 0:00:13]}  dxe4 {[%clk 0:01:39]} 23. Bxe4 {[%clk 0:00:13]}  f5 {[%clk 0:01:39]} 24. Bd3 {[%clk 0:00:11]}  Nb2 {[%clk 0:01:36]} 25. Rf1 {[%clk 0:00:09]}  e5 {[%clk 0:01:35]} 26. Bb5 {[%clk 0:00:05]}  e4 {[%clk 0:01:35]} 27. Ne1 {[%clk 0:00:05]}  Rd8 {[%clk 0:01:31]} 28. g3 {[%clk 0:00:04]}  Rd2 {[%clk 0:01:22]} 29. Bc6 {[%clk 0:00:02]}  g6 {[%clk 0:01:17]} 30. h4 {[%clk 0:00:03]}  Kg7 {[%clk 0:01:17]} 31. Bb7 {[%clk 0:00:02]}  Kf6 {[%clk 0:01:16]} 32. Ba6 {[%clk 0:00:02]}  Ke5 {[%clk 0:01:16]} 33. Bb5 {[%clk 0:00:02]}  h6 {[%clk 0:01:16]} 34. Ng2 {[%clk 0:00:02]}  Bd4 {[%clk 0:01:11]} 35. Ne3 {[%clk 0:00:01]}  Bxe3 {[%clk 0:01:07]} 36. fxe3 {[%clk 0:00:02]}  Nd1 {[%clk 0:01:06]} 37. Re1 {[%clk 0:00:01]}  Nc3 {[%clk 0:01:04]} 38. Bf1 {[%clk 0:00:02]}  Rxc2 {[%clk 0:01:01]} 39. Ra1 {[%clk 0:00:00]}  Ra2 {[%clk 0:00:44]} 0-1

[Event "December 12 Early 2023"]
[Site "https://www.chess.com"]
[Date "2023.12.12"]
[Round "2"]
[White "Ashraf, Artin"]
[Black "Principe, Gerson"]
[Result "1-0"]
[Board "32"]
[TimeControl "180+1"]
[WhiteFideId "22514805"]
[BlackFideId "3804550"]
[WhiteElo "2903"]
[BlackElo "2598"]
[WhiteTeam "IRI"]
[BlackTeam "PER"]
[WhiteClock "0:01:10"]
[BlackClock "0:00:07"]

1. e4 {[%clk 0:02:57]}  c6 {[%clk 0:02:59]} 2. d3 {[%clk 0:02:54]}  d5 {[%clk 0:03:00]} 3. Nf3 {[%clk 0:02:54]}  Bg4 {[%clk 0:03:00]} 4. Nbd2 {[%clk 0:02:53]}  e6 {[%clk 0:02:56]} 5. Be2 {[%clk 0:02:52]}  Nf6 {[%clk 0:02:55]} 6. Ne5 {[%clk 0:02:52]}  Bxe2 {[%clk 0:02:55]} 7. Qxe2 {[%clk 0:02:53]}  Be7 {[%clk 0:02:54]} 8. O-O {[%clk 0:02:53]}  O-O {[%clk 0:02:54]} 9. Nef3 {[%clk 0:02:52]}  a5 {[%clk 0:02:53]} 10. a4 {[%clk 0:02:52]}  Na6 {[%clk 0:02:51]} 11. c3 {[%clk 0:02:52]}  Qc7 {[%clk 0:02:40]} 12. Re1 {[%clk 0:02:51]}  Rfe8 {[%clk 0:02:38]} 13. Nf1 {[%clk 0:02:49]}  b5 {[%clk 0:02:36]} 14. e5 {[%clk 0:02:46]}  Nd7 {[%clk 0:02:35]} 15. d4 {[%clk 0:02:46]}  b4 {[%clk 0:02:33]} 16. Ng3 {[%clk 0:02:33]}  c5 {[%clk 0:02:31]} 17. Bg5 {[%clk 0:02:31]}  Bf8 {[%clk 0:02:29]} 18. Nh5 {[%clk 0:02:31]}  bxc3 {[%clk 0:02:24]} 19. bxc3 {[%clk 0:02:30]}  cxd4 {[%clk 0:02:25]} 20. cxd4 {[%clk 0:02:31]}  Nb4 {[%clk 0:02:25]} 21. Rac1 {[%clk 0:02:30]}  Qb7 {[%clk 0:02:18]} 22. Rc3 {[%clk 0:02:26]}  Rac8 {[%clk 0:02:17]} 23. Re3 {[%clk 0:02:21]}  Nc2 {[%clk 0:02:14]} 24. Nh4 {[%clk 0:02:15]}  Nxe3 {[%clk 0:01:58]} 25. fxe3 {[%clk 0:02:02]}  g6 {[%clk 0:01:24]} 26. Rf1 {[%clk 0:01:56]}  h6 {[%clk 0:01:01]} 27. Qf3 {[%clk 0:01:44]}  f5 {[%clk 0:00:31]} 28. exf6 {[%clk 0:01:42]}  Kf7 {[%clk 0:00:27]} 29. Nxg6 {[%clk 0:01:24]}  Bd6 {[%clk 0:00:16]} 30. Bxh6 {[%clk 0:01:18]}  Rg8 {[%clk 0:00:16]} 31. Ng7 {[%clk 0:01:17]}  Qb2 {[%clk 0:00:12]} 32. Qh5 {[%clk 0:01:14]}  Nxf6 {[%clk 0:00:07]} 33. Ne5+ {[%clk 0:01:10]} 1-0

[Event "December 12 Early 2023"]
[Site "https://www.chess.com"]
[Date "2023.12.12"]
[Round "2"]
[White "Galchenko, Matvey"]
[Black "Tologon tegin, Semetei"]
[Result "0-1"]
[Board "34"]
[TimeControl "180+1"]
[WhiteFideId "24175480"]
[BlackFideId "13800574"]
[WhiteElo "2899"]
[BlackElo "2597"]
[WhiteTeam "FID"]
[BlackTeam "KGZ"]
[WhiteClock "0:00:06"]
[BlackClock "0:00:22"]

1. e4 {[%clk 0:02:59]}  e5 {[%clk 0:02:58]} 2. Nf3 {[%clk 0:02:58]}  Nc6 {[%clk 0:02:59]} 3. d4 {[%clk 0:02:58]}  exd4 {[%clk 0:02:59]} 4. c3 {[%clk 0:02:58]}  d3 {[%clk 0:02:58]} 5. Bxd3 {[%clk 0:02:58]}  Bc5 {[%clk 0:02:58]} 6. O-O {[%clk 0:02:55]}  d6 {[%clk 0:02:58]} 7. Nbd2 {[%clk 0:02:54]}  Nf6 {[%clk 0:02:58]} 8. b4 {[%clk 0:02:49]}  Bb6 {[%clk 0:02:58]} 9. Nc4 {[%clk 0:02:49]}  Bg4 {[%clk 0:02:57]} 10. h3 {[%clk 0:02:47]}  Bh5 {[%clk 0:02:56]} 11. a4 {[%clk 0:02:40]}  a5 {[%clk 0:02:16]} 12. Nxb6 {[%clk 0:02:38]}  cxb6 {[%clk 0:02:17]} 13. b5 {[%clk 0:02:09]}  Ne5 {[%clk 0:02:17]} 14. Be2 {[%clk 0:02:03]}  O-O {[%clk 0:02:10]} 15. Bg5 {[%clk 0:01:53]}  h6 {[%clk 0:02:08]} 16. Bxf6 {[%clk 0:01:09]}  Qxf6 {[%clk 0:02:05]} 17. Nxe5 {[%clk 0:01:02]}  Bxe2 {[%clk 0:02:04]} 18. Nd7 {[%clk 0:01:02]}  Qe7 {[%clk 0:01:59]} 19. Qxe2 {[%clk 0:01:02]}  Qxd7 {[%clk 0:01:59]} 20. Rfd1 {[%clk 0:01:02]}  Qc7 {[%clk 0:01:55]} 21. Qe3 {[%clk 0:01:01]}  Rac8 {[%clk 0:01:53]} 22. Rd3 {[%clk 0:01:00]}  Rfe8 {[%clk 0:01:49]} 23. f3 {[%clk 0:00:56]}  f5 {[%clk 0:01:36]} 24. Rad1 {[%clk 0:00:43]}  fxe4 {[%clk 0:01:36]} 25. fxe4 {[%clk 0:00:44]}  Re6 {[%clk 0:01:35]} 26. Qd4 {[%clk 0:00:41]}  Rce8 {[%clk 0:01:32]} 27. Re3 {[%clk 0:00:39]}  Qc5 {[%clk 0:01:18]} 28. Kh2 {[%clk 0:00:23]}  Rg6 {[%clk 0:00:43]} 29. Rf3 {[%clk 0:00:17]}  Re5 {[%clk 0:00:40]} 30. Qd3 {[%clk 0:00:10]}  Reg5 {[%clk 0:00:38]} 31. Rd2 {[%clk 0:00:07]}  Qe5+ {[%clk 0:00:38]} 32. Kg1 {[%clk 0:00:07]}  Kh7 {[%clk 0:00:34]} 33. Qd4 {[%clk 0:00:05]}  Qc5 {[%clk 0:00:22]} 34. Qxc5 {[%clk 0:00:05]}  bxc5 {[%clk 0:00:22]} 35. c4 {[%clk 0:00:02]}  Re5 {[%clk 0:00:21]} 36. Rf4 {[%clk 0:00:03]}  Rge6 {[%clk 0:00:21]} 37. Re2 {[%clk 0:00:03]}  Kg8 {[%clk 0:00:20]} 38. Kf2 {[%clk 0:00:03]}  g5 {[%clk 0:00:20]} 39. Rg4 {[%clk 0:00:03]}  Kf7 {[%clk 0:00:19]} 40. Kf3 {[%clk 0:00:03]}  Ke7 {[%clk 0:00:19]} 41. Re3 {[%clk 0:00:03]}  Kd7 {[%clk 0:00:20]} 42. Ke2 {[%clk 0:00:04]}  Re7 {[%clk 0:00:20]} 43. Kd3 {[%clk 0:00:04]}  R5e6 {[%clk 0:00:20]} 44. Rgg3 {[%clk 0:00:05]}  Rf6 {[%clk 0:00:21]} 45. Rgf3 {[%clk 0:00:05]}  Ref7 {[%clk 0:00:21]} 46. e5 {[%clk 0:00:03]}  dxe5 {[%clk 0:00:19]} 47. Rxf6 {[%clk 0:00:03]}  Rxf6 {[%clk 0:00:20]} 48. Rxe5 {[%clk 0:00:04]}  b6 {[%clk 0:00:21]} 49. Ke4 {[%clk 0:00:03]}  Rf4+ {[%clk 0:00:20]} 50. Kd3 {[%clk 0:00:03]}  Rf2 {[%clk 0:00:19]} 51. Re3 {[%clk 0:00:02]}  Rxg2 {[%clk 0:00:19]} 52. Rf3 {[%clk 0:00:03]}  Ke6 {[%clk 0:00:19]} 53. Re3+ {[%clk 0:00:04]}  Kd6 {[%clk 0:00:19]} 54. Rf3 {[%clk 0:00:04]}  Ke5 {[%clk 0:00:20]} 55. Re3+ {[%clk 0:00:05]}  Kf5 {[%clk 0:00:20]} 56. Rf3+ {[%clk 0:00:05]}  Kg6 {[%clk 0:00:21]} 57. Ke4 {[%clk 0:00:06]}  Re2+ {[%clk 0:00:21]} 58. Kd5 {[%clk 0:00:06]}  h5 {[%clk 0:00:19]} 59. Kc6 {[%clk 0:00:06]}  g4 {[%clk 0:00:20]} 60. hxg4 {[%clk 0:00:07]}  hxg4 {[%clk 0:00:21]} 61. Rf8 {[%clk 0:00:07]}  Re6+ {[%clk 0:00:21]} 62. Kd5 {[%clk 0:00:08]}  Rf6 {[%clk 0:00:20]} 63. Rg8+ {[%clk 0:00:06]}  Kf5 {[%clk 0:00:20]} 64. Rg7 {[%clk 0:00:05]}  Kf4 {[%clk 0:00:21]} 65. Rg8 {[%clk 0:00:05]}  g3 {[%clk 0:00:21]} 66. Rg7 {[%clk 0:00:06]}  Kf3 {[%clk 0:00:21]} 67. Ke5 {[%clk 0:00:07]}  Rh6 {[%clk 0:00:21]} 68. Rf7+ {[%clk 0:00:06]}  Ke3 {[%clk 0:00:22]} 69. Rg7 {[%clk 0:00:06]}  Kf2 {[%clk 0:00:22]} 70. Kf4 {[%clk 0:00:07]}  g2 {[%clk 0:00:22]} 71. Ke4 {[%clk 0:00:06]}  g1=Q {[%clk 0:00:22]} 0-1

[Event "December 12 Early 2023"]
[Site "https://www.chess.com"]
[Date "2023.12.12"]
[Round "2"]
[White "Onyshchuk, Volodymyr"]
[Black "Tasev, Dejan"]
[Result "1/2-1/2"]
[Board "36"]
[TimeControl "180+1"]
[WhiteFideId "14114038"]
[BlackFideId "936618"]
[WhiteElo "2892"]
[BlackElo "2589"]
[WhiteTeam "UKR"]
[BlackTeam "SRB"]
[WhiteClock "0:00:16"]
[BlackClock "0:00:12"]

1. e4 {[%clk 0:03:00]}  e5 {[%clk 0:03:00]} 2. Nf3 {[%clk 0:03:00]}  Nc6 {[%clk 0:02:59]} 3. Bb5 {[%clk 0:03:00]}  a6 {[%clk 0:02:59]} 4. Ba4 {[%clk 0:02:59]}  Nf6 {[%clk 0:02:59]} 5. d3 {[%clk 0:02:59]}  b5 {[%clk 0:02:59]} 6. Bb3 {[%clk 0:02:59]}  Be7 {[%clk 0:02:59]} 7. O-O {[%clk 0:02:59]}  O-O {[%clk 0:02:58]} 8. Nc3 {[%clk 0:02:59]}  Bb7 {[%clk 0:02:58]} 9. a3 {[%clk 0:02:59]}  d6 {[%clk 0:02:57]} 10. Bd2 {[%clk 0:02:50]}  Na5 {[%clk 0:02:50]} 11. Ba2 {[%clk 0:02:50]}  c5 {[%clk 0:02:51]} 12. b4 {[%clk 0:02:50]}  Nc6 {[%clk 0:02:48]} 13. Nd5 {[%clk 0:02:50]}  Nxd5 {[%clk 0:02:38]} 14. Bxd5 {[%clk 0:02:49]}  Qc7 {[%clk 0:02:35]} 15. c4 {[%clk 0:02:44]}  bxc4 {[%clk 0:02:28]} 16. dxc4 {[%clk 0:02:44]}  Nd4 {[%clk 0:02:23]} 17. bxc5 {[%clk 0:02:20]}  dxc5 {[%clk 0:02:18]} 18. Rb1 {[%clk 0:02:18]}  Bxd5 {[%clk 0:02:11]} 19. cxd5 {[%clk 0:02:16]}  Rfb8 {[%clk 0:01:56]} 20. Qa4 {[%clk 0:02:07]}  Rxb1 {[%clk 0:01:20]} 21. Rxb1 {[%clk 0:02:06]}  c4 {[%clk 0:01:12]} 22. Ba5 {[%clk 0:02:00]}  Nxf3+ {[%clk 0:00:57]} 23. gxf3 {[%clk 0:01:59]}  Qc8 {[%clk 0:00:49]} 24. Kg2 {[%clk 0:01:37]}  f5 {[%clk 0:00:33]} 25. exf5 {[%clk 0:01:11]}  Qxf5 {[%clk 0:00:31]} 26. Qc6 {[%clk 0:00:52]}  Rf8 {[%clk 0:00:24]} 27. Qe6+ {[%clk 0:00:50]}  Qxe6 {[%clk 0:00:20]} 28. dxe6 {[%clk 0:00:51]}  Bxa3 {[%clk 0:00:21]} 29. Rb6 {[%clk 0:00:45]}  Rc8 {[%clk 0:00:20]} 30. Bc3 {[%clk 0:00:44]}  Kf8 {[%clk 0:00:17]} 31. Rxa6 {[%clk 0:00:38]}  Bc5 {[%clk 0:00:16]} 32. Bxe5 {[%clk 0:00:35]}  Ke7 {[%clk 0:00:15]} 33. f4 {[%clk 0:00:36]}  g6 {[%clk 0:00:15]} 34. Kf3 {[%clk 0:00:35]}  Bb4 {[%clk 0:00:15]} 35. Ke4 {[%clk 0:00:28]}  c3 {[%clk 0:00:14]} 36. f5 {[%clk 0:00:28]}  gxf5+ {[%clk 0:00:14]} 37. Kxf5 {[%clk 0:00:26]}  c2 {[%clk 0:00:12]} 38. Ra7+ {[%clk 0:00:26]}  Ke8 {[%clk 0:00:12]} 39. Bb2 {[%clk 0:00:15]}  c1=Q {[%clk 0:00:11]} 40. Bxc1 {[%clk 0:00:15]}  Rxc1 {[%clk 0:00:12]} 41. Rxh7 {[%clk 0:00:15]}  Rf1 {[%clk 0:00:11]} 42. f4 {[%clk 0:00:15]}  Bd2 {[%clk 0:00:11]} 43. Rh4 {[%clk 0:00:15]}  Ke7 {[%clk 0:00:11]} 44. Rh7+ {[%clk 0:00:15]}  Ke8 {[%clk 0:00:11]} 45. Rh8+ {[%clk 0:00:15]}  Ke7 {[%clk 0:00:12]} 46. Rh7+ {[%clk 0:00:16]}  Ke8 {[%clk 0:00:12]} 1/2-1/2